fUSD/lending_fUSD_20260226
["ID","MTS","AMOUNT","RATE_DAILY","PERIOD"]
[406718167,1772117441038,-800.0,0.0001289,2]
[406718168,1772117441047,-800.0,0.0001289,2]
[406718169,1772117441057,-150.25022043,0.0001289,2]
[406718170,1772117441066,-800.0,0.0001289,2]
[406718171,1772117441076,-500.0,0.0001289,2]
[406718172,1772117441085,-500.0,0.0001289,2]
[406718173,1772117441095,-500.0,0.0001289,2]
[406718174,1772117441104,-800.0,0.0001289,2]
[406718175,1772117441114,-500.0,0.0001289,2]
[406718176,1772117441123,-500.0,0.0001289,2]
[406718177,1772117441132,-500.0,0.0001289,2]
[406718178,1772117441142,-800.0,0.0001289,2]
[406718179,1772117441151,-500.0,0.0001289,2]
[406718180,1772117441160,-500.0,0.0001289,2]
[406718181,1772117441170,-500.0,0.0001289,2]
[406718182,1772117441180,-800.0,0.0001289,2]
[406718183,1772117441190,-500.0,0.0001289,2]
[406718184,1772117441199,-500.0,0.0001289,2]
[406718185,1772117441209,-500.0,0.0001289,2]
[406718186,1772117441218,-500.0,0.0001289,2]
[406718187,1772117441228,-500.0,0.0001289,2]
[406718188,1772117441240,-500.0,0.0001289,2]
[406718189,1772117441250,-800.0,0.0001289,2]
[406718190,1772117441261,-500.0,0.0001289,2]
[406718191,1772117441271,-500.0,0.0001289,2]
[406718192,1772117441281,-670.0,0.0001289,2]
[406718193,1772117441291,-800.0,0.0001289,2]
[406718194,1772117441300,-500.0,0.0001289,2]
[406718195,1772117441309,-500.0,0.0001289,2]
[406718196,1772117441318,-500.0,0.0001289,2]
[406718197,1772117441328,-800.0,0.0001289,2]
[406718198,1772117441338,-500.0,0.0001289,2]
[406718199,1772117441348,-500.0,0.0001289,2]
[406718200,1772117441358,-500.0,0.0001289,2]
[406718201,1772117441368,-500.0,0.0001289,2]
[406718202,1772117441377,-500.0,0.0001289,2]
[406718203,1772117441386,-500.0,0.0001289,2]
[406718204,1772117441396,-500.0,0.0001289,2]
[406718205,1772117441405,-500.0,0.0001289,2]
[406718206,1772117441415,-500.0,0.0001289,2]
[406718207,1772117441426,-500.0,0.0001289,2]
[406718208,1772117441435,-500.0,0.0001289,2]
[406718209,1772117441444,-500.0,0.0001289,2]
[406718210,1772117441454,-500.0,0.0001289,2]
[406718211,1772117441463,-500.0,0.0001289,2]
[406718212,1772117441473,-500.0,0.0001289,2]
[406718213,1772117441485,-500.0,0.0001289,2]
[406718214,1772117441495,-500.0,0.0001289,2]
[406718215,1772117441505,-500.0,0.0001289,2]
[406718216,1772117441518,-500.0,0.0001289,2]
[406718217,1772117441527,-500.0,0.0001289,2]
[406718218,1772117441537,-500.0,0.0001289,2]
[406718219,1772117441546,-500.0,0.0001289,2]
[406718220,1772117441555,-500.0,0.0001289,2]
[406718221,1772117441566,-500.0,0.0001289,2]
[406718222,1772117441575,-500.0,0.0001289,2]
[406718223,1772117441585,-500.0,0.0001289,2]
[406718224,1772117441594,-500.0,0.0001289,2]
[406718225,1772117441604,-152.0758102,0.0001289,2]
[406718226,1772117441613,-500.0,0.0001289,2]
[406718227,1772117441623,-500.0,0.0001289,2]
[406718228,1772117441632,-328.45241177,0.00012899,2]
[406718229,1772117441641,-415.57152848,0.00012899,2]
[406718230,1772117441651,-186.33405223,0.00012899,2]
[406718231,1772117441660,-184.54572167,0.00012899,2]
[406718232,1772117441669,-500.0,0.00012899,2]
[406718233,1772117441679,-500.0,0.00012899,2]
[406718234,1772117441688,-500.0,0.00012899,2]
[406718235,1772117441697,-500.0,0.00012899,2]
[406718236,1772117441707,-500.0,0.00012899,2]
[406718237,1772117441716,-500.0,0.00012899,2]
[406718238,1772117441725,-500.0,0.00012899,2]
[406718239,1772117441734,-500.0,0.00012899,2]
[406718240,1772117441743,-500.0,0.00012899,2]
[406718241,1772117441753,-500.0,0.00012899,2]
[406718242,1772117441765,-500.0,0.00012899,2]
[406718243,1772117441774,-500.0,0.00012899,2]
[406718244,1772117441784,-500.0,0.00012899,2]
[406718245,1772117441793,-500.0,0.00012899,2]
[406718246,1772117441803,-500.0,0.00012899,2]
[406718247,1772117441812,-500.0,0.00012899,2]
[406718248,1772117441821,-500.0,0.00012899,2]
[406718249,1772117441830,-500.0,0.00012899,2]
[406718250,1772117441840,-500.0,0.00012899,2]
[406718251,1772117441851,-500.0,0.00012899,2]
[406718252,1772117441864,-500.0,0.00012899,2]
[406718253,1772117441873,-500.0,0.00012899,2]
[406718254,1772117441883,-500.0,0.00012899,2]
[406718255,1772117441892,-500.0,0.00012899,2]
[406718256,1772117441904,-500.0,0.00012899,2]
[406718257,1772117441913,-500.0,0.00012899,2]
[406718258,1772117441923,-500.0,0.00012899,2]
[406718259,1772117441932,-500.0,0.00012899,2]
[406718260,1772117441945,-500.0,0.00012899,2]
[406718261,1772117441954,-500.0,0.00012899,2]
[406718262,1772117441963,-500.0,0.00012899,2]
[406718263,1772117441975,-500.0,0.00012899,2]
[406718264,1772117441984,-500.0,0.00012899,2]
[406718265,1772117441994,-500.0,0.00012899,2]
[406718266,1772117442003,-500.0,0.00012899,2]
[406718267,1772117442014,-500.0,0.00012899,2]
[406718268,1772117442024,-500.0,0.00012899,2]
[406718269,1772117442033,-500.0,0.00012899,2]
[406718270,1772117442043,-500.0,0.00012899,2]
[406718271,1772117442052,-500.0,0.00012899,2]
[406718272,1772117442061,-500.0,0.00012899,2]
[406718273,1772117442071,-500.0,0.00012899,2]
[406718274,1772117442080,-500.0,0.00012899,2]
[406718275,1772117442089,-500.0,0.00012899,2]
[406718276,1772117442098,-500.0,0.00012899,2]
[406718277,1772117442107,-884.41942141,0.00012899,2]
[406718278,1772117442117,-884.41942141,0.00012899,2]
[406718279,1772117442127,-884.41942141,0.00012899,2]
[406718280,1772117442136,-884.41942141,0.00012899,2]
[406718281,1772117442146,-884.41942141,0.00012899,2]
[406718282,1772117442155,-884.41942141,0.00012899,2]
[406718283,1772117442164,-884.41942141,0.00012899,2]
[406718284,1772117442174,-884.41942141,0.00012899,2]
[406718285,1772117442183,-884.41942141,0.00012899,2]
[406718286,1772117442192,-884.41942141,0.00012899,2]
[406718287,1772117442202,-884.41942141,0.00012899,2]
[406718288,1772117442211,-884.41942141,0.00012899,2]
[406718289,1772117442220,-884.41942141,0.00012899,2]
[406718290,1772117442229,-884.41942141,0.00012899,2]
[406718291,1772117442239,-884.41942141,0.00012899,2]
[406718292,1772117442248,-884.41942141,0.00012899,2]
[406718293,1772117442258,-884.41942141,0.00012899,2]
[406718294,1772117442273,-884.41942141,0.00012899,2]
[406718295,1772117442282,-884.41942141,0.00012899,2]
[406718296,1772117442292,-884.41942141,0.00012899,2]
[406718297,1772117442301,-884.41942141,0.00012899,2]
[406718298,1772117442310,-884.41942141,0.00012899,2]
[406718299,1772117442320,-884.41942141,0.00012899,2]
[406718300,1772117442330,-884.41942141,0.00012899,2]
[406718301,1772117442339,-884.41942141,0.00012899,2]
[406718302,1772117442349,-884.41942141,0.00012899,2]
[406718303,1772117442358,-884.41942141,0.00012899,2]
[406718304,1772117442367,-884.41942141,0.00012899,2]
[406718305,1772117442376,-884.41942141,0.00012899,2]
[406718306,1772117442386,-884.41942141,0.00012899,2]
[406718307,1772117442395,-884.41942141,0.00012899,2]
[406718308,1772117442405,-884.41942141,0.00012899,2]
[406718309,1772117442415,-884.41942141,0.00012899,2]
[406718310,1772117442424,-884.41942141,0.00012899,2]
[406718311,1772117442434,-884.41942141,0.00012899,2]
[406718312,1772117442444,-895.47466418,0.00012899,2]
[406718313,1772117442454,-895.47466418,0.00012899,2]
[406718314,1772117442463,-895.47466418,0.00012899,2]
[406718315,1772117442473,-895.47466418,0.00012899,2]
[406718316,1772117442482,-895.47466418,0.00012899,2]
[406718317,1772117442492,-895.47466418,0.00012899,2]
[406718318,1772117442501,-895.47466418,0.00012899,2]
[406718319,1772117442512,-895.47466418,0.00012899,2]
[406718320,1772117442522,-895.47466418,0.00012899,2]
[406718321,1772117442532,-895.47466415,0.00012899,2]
[406718322,1772117442541,-4700.0,0.000129,4]
[406718323,1772117442550,-2725.97775843,0.00012971,2]
[406718324,1772117442560,-2500.0,0.0001302,2]
[406718325,1772117442569,-324.34,0.00013054,2]
[406718326,1772117442578,-1437.38525,0.0001311,2]
[406718327,1772117442588,-3790.534503,0.000133,2]
[406718328,1772117442598,-27067.80659463,0.0001332,2]
[406718330,1772117442608,-3000.0,0.00013568,2]
[406718331,1772117442617,-204.48,0.00013602,2]
[406718332,1772117442626,-1170.42,0.00013631,2]
[406718333,1772117442635,-500.0,0.00013698,2]
[406718334,1772117442645,-500.0,0.00013698,2]
[406718335,1772117442654,-500.0,0.00013698,2]
[406718336,1772117442663,-500.0,0.00013698,2]
[406718338,1772117442673,-500.0,0.00013698,2]
[406718339,1772117442796,-500.0,0.00013698,2]
[406718340,1772117442805,-500.0,0.00013698,2]
[406718341,1772117442814,-500.0,0.00013698,2]
[406718342,1772117442824,-500.0,0.00013698,2]
[406718343,1772117442833,-500.0,0.00013698,2]
[406718344,1772117442843,-500.0,0.00013698,2]
[406718345,1772117442851,-500.0,0.00013698,2]
[406718346,1772117442862,-500.0,0.00013698,2]
[406718347,1772117442873,-568.60354988,0.00013698,2]
[406718348,1772117442882,-500.0,0.00013698,2]
[406718349,1772117442892,-500.0,0.00013698,2]
[406718350,1772117442902,-500.0,0.00013698,2]
[406718351,1772117442911,-368.2260392,0.00013698,2]
[406718352,1772117442920,-500.0,0.00013698,2]
[406718353,1772117442929,-405.62075362,0.00013698,2]
[406718354,1772117442941,-500.0,0.00013698,2]
[406718355,1772117442950,-500.0,0.00013698,2]
[406718356,1772117442959,-500.0,0.00013698,2]
[406718357,1772117442968,-500.0,0.00013698,2]
[406718358,1772117442977,-500.0,0.00013698,2]
[406718359,1772117442986,-500.0,0.00013698,2]
[406718360,1772117442996,-500.0,0.00013698,2]
[406718361,1772117443005,-500.0,0.00013698,2]
[406718362,1772117443017,-500.0,0.00013698,2]
[406718363,1772117443027,-500.0,0.00013698,2]
[406718364,1772117443036,-500.0,0.00013698,2]
[406718365,1772117443045,-500.0,0.00013698,2]
[406718366,1772117443053,-500.0,0.00013698,2]
[406718367,1772117443063,-500.0,0.00013698,2]
[406718368,1772117443072,-500.0,0.00013698,2]
[406718369,1772117443081,-500.0,0.00013698,2]
[406718370,1772117443091,-500.0,0.00013698,2]
[406718371,1772117443100,-500.0,0.00013698,2]
[406718372,1772117443109,-500.0,0.00013698,2]
[406718373,1772117443118,-500.0,0.00013698,2]
[406718374,1772117443128,-500.0,0.00013698,2]
[406718375,1772117443137,-500.0,0.00013698,2]
[406718376,1772117443147,-500.0,0.00013698,2]
[406718377,1772117443156,-585.34193517,0.00013698,2]
[406718378,1772117443165,-500.0,0.00013698,2]
[406718379,1772117443174,-500.0,0.00013698,2]
[406718380,1772117443183,-500.0,0.00013698,2]
[406718381,1772117443193,-500.0,0.00013698,2]
[406718382,1772117443202,-500.0,0.00013698,2]
[406718383,1772117443211,-500.0,0.00013698,2]
[406718384,1772117443220,-500.0,0.00013698,2]
[406718385,1772117443229,-500.0,0.00013698,2]
[406718386,1772117443239,-500.0,0.00013698,2]
[406718387,1772117443248,-500.0,0.00013698,2]
[406718388,1772117443258,-500.0,0.00013698,2]
[406718389,1772117443269,-500.0,0.00013698,2]
[406718390,1772117443278,-500.0,0.00013698,2]
[406718391,1772117443287,-500.0,0.00013698,2]
[406718392,1772117443296,-500.0,0.00013698,2]
[406718393,1772117443305,-500.0,0.00013698,2]
[406718394,1772117443315,-500.0,0.00013698,2]
[406718395,1772117443324,-500.0,0.00013698,2]
[406718396,1772117443334,-500.0,0.00013698,2]
[406718397,1772117443343,-500.0,0.00013698,2]
[406718398,1772117443352,-500.0,0.00013698,2]
[406718399,1772117443361,-500.0,0.00013698,2]
[406718400,1772117443371,-500.0,0.00013698,2]
[406718401,1772117443380,-269.57915282,0.00013698,2]
[406718402,1772117443390,-151.77928561,0.00013698,2]
[406718403,1772117443400,-500.0,0.00013698,2]
[406718404,1772117443409,-500.0,0.00013698,2]
[406718405,1772117443418,-467.36158262,0.00013698,2]
[406718406,1772117443427,-500.0,0.00013698,2]
[406718407,1772117443436,-500.0,0.00013698,2]
[406718408,1772117443446,-500.0,0.00013698,2]
[406718409,1772117443455,-500.0,0.00013698,2]
[406718410,1772117443464,-409.20397161,0.00013698,2]
[406718411,1772117443473,-500.0,0.00013698,2]
[406718412,1772117443482,-500.0,0.00013698,2]
[406718413,1772117443492,-500.0,0.00013698,2]
[406718414,1772117443501,-500.0,0.00013698,2]
[406718415,1772117443512,-500.0,0.00013698,2]
[406718416,1772117443521,-500.0,0.00013698,2]
[406718417,1772117443531,-500.0,0.00013698,2]
[406718418,1772117443540,-500.0,0.00013698,2]
[406718419,1772117443549,-500.0,0.00013698,2]
[406718420,1772117443558,-500.0,0.00013698,2]
[406718421,1772117443568,-500.0,0.00013698,2]
[406718422,1772117443577,-500.0,0.00013698,2]
[406718423,1772117443587,-500.0,0.00013698,2]
[406718424,1772117443596,-500.0,0.00013698,3]
[406718425,1772117443605,-500.0,0.00013698,4]
[406718426,1772117443615,-500.0,0.00013698,5]
[406718427,1772117443624,-500.0,0.00013698,6]
[406718428,1772117443634,-500.0,0.00013698,7]
[406718429,1772117443644,-500.0,0.00013698,8]
[406718430,1772117443653,-500.0,0.00013698,9]
[406718431,1772117443662,-500.0,0.00013698,10]
[406718432,1772117443670,-500.0,0.00013698,11]
[406718433,1772117443680,-500.0,0.00013698,12]
[406718434,1772117443689,-500.0,0.00013698,13]
[406718435,1772117443698,-500.0,0.00013698,2]
[406718436,1772117443707,-500.0,0.00013698,2]
[406718437,1772117443717,-584.92775525,0.00013698,2]
[406718438,1772117443726,-318.18597163,0.00013698,2]
[406718439,1772117443736,-200.0,0.00013699,2]
[406718440,1772117443745,-271.25,0.00013699,2]
[406718441,1772117443761,-226.04,0.00013699,2]
[406718442,1772117443776,-188.37,0.00013699,2]
[406718443,1772117443786,-156.97,0.00013699,2]
[406718444,1772117443796,-784.9,0.00013699,2]
[406718445,1772117443806,-324.34,0.00013741,2]
[406718446,1772117443816,-2725.97775843,0.00013957,2]
[406718447,1772117443826,-3500.0,0.00014116,2]
[406718448,1772117443836,-11259.76176711,0.00014119,2]
[406718449,1772117443846,-500.0,0.00014191,2]
[406718450,1772117443856,-500.0,0.00014209,2]
[406718451,1772117443869,-500.0,0.00014209,14]
[406718452,1772117443879,-224.40086961,0.00014224,2]
[406718453,1772117443888,-27067.80659463,0.00014236,2]
[406718454,1772117443899,-324.34,0.00014428,2]
[406718455,1772117443909,-204.46,0.0001451,2]
[406718456,1772117443918,-151.0,0.00014634,2]
[406718457,1772117443928,-2966.1264312,0.00014664,2]
[406718458,1772117443937,-202.67,0.00014884,14]
[406718459,1772117443948,-202.68,0.00014884,14]
[406718460,1772117443958,-2725.97775843,0.00014942,2]
[406718461,1772117443967,-772.91,0.00015008,2]
[406718462,1772117443977,-324.34,0.00015115,2]
[406718463,1772117443986,-1170.42,0.00015146,2]
[406718464,1772117443996,-27067.80659463,0.00015152,2]
[406718465,1772117444005,-500.0,0.00015189,2]
[406718466,1772117444016,-151.0,0.00015376,2]
[406718467,1772117444026,-11259.76176711,0.0001538,2]
[406718468,1772117444035,-202.67,0.00015432,14]
[406718469,1772117444045,-202.68,0.00015432,14]
[406718470,1772117444054,-1000.0,0.00015507,2]
[406718471,1772117444063,-3498.0,0.00015757,2]
[406718472,1772117444072,-1041.0,0.00015757,2]
[406718473,1772117444082,-1340.0,0.00015757,2]
[406718474,1772117444092,-1277.0,0.00015757,2]
[406718475,1772117444102,-4572.0,0.00015757,2]
[406718476,1772117444111,-413.0,0.00015757,2]
[406718477,1772117444121,-204.48,0.00015786,2]
[406718478,1772117444131,-324.34,0.00015802,2]
[406718479,1772117444141,-1000.0,0.00015895,2]
[406718480,1772117444151,-2725.97775843,0.00015928,2]
[406718481,1772117444160,-202.67,0.0001598,14]
[406718482,1772117444170,-202.68,0.0001598,14]
[406718483,1772117444179,-27067.80659463,0.00016068,2]
[406718484,1772117444188,-150.0,0.00016082,2]
[406718485,1772117444198,-1000.0,0.00016282,2]
[406718486,1772117444207,-200.0,0.00016287,2]
[406718487,1772117444217,-500.0,0.00016356,2]
[406718488,1772117444226,-500.0,0.00016356,2]
[406718489,1772117444236,-500.0,0.00016356,2]
[406718490,1772117444246,-606.4,0.00016438,2]
[406718491,1772117444255,-500.0,0.00016438,2]
[406718492,1772117444268,-324.34,0.00016489,2]
[406718493,1772117444278,-500.0,0.00016493,2]
[406718494,1772117444288,-500.0,0.00016548,2]
[406718495,1772117444298,-500.0,0.00016602,2]
[406718496,1772117444307,-11259.76176711,0.0001664,2]
[406718497,1772117444316,-500.0,0.00016657,2]
[406718498,1772117444325,-1170.42,0.0001666,2]
[406718499,1772117444335,-1000.0,0.0001667,2]
[406718500,1772117444344,-500.0,0.00016712,2]
[406718501,1772117444354,-606.4,0.00016712,2]
[406718502,1772117444363,-500.0,0.00016712,2]
[406718503,1772117444373,-845.0,0.0001672,2]
[406718504,1772117444382,-500.0,0.00016751,2]
[406718505,1772117444391,-500.0,0.00016751,15]
[406718506,1772117444401,-500.0,0.00016767,2]
[406718507,1772117444411,-379.89029775,0.00016822,2]
[406718508,1772117444420,-500.0,0.0001687,2]
[406718509,1772117444429,-1000.0,0.0001687,2]
[406718510,1772117444439,-616.02225,0.00016886,7]
[406718511,1772117444448,-2725.97775843,0.00016914,2]
[406718512,1772117444457,-27067.80659463,0.00016984,2]
[406718513,1772117444466,-606.4,0.00016986,2]
[406718514,1772117444476,-500.0,0.00016999,2]
[406718515,1772117444486,-500.0,0.00016999,2]
[406718516,1772117444496,-500.0,0.00016999,16]
[406718517,1772117444506,-200.0,0.00017033,2]
[406718518,1772117444520,-200.0,0.00017033,2]
[406718519,1772117444531,-200.0,0.00017033,2]
[406718520,1772117444541,-200.0,0.00017033,2]
[406718521,1772117444551,-200.0,0.00017033,2]
[406718522,1772117444561,-200.0,0.00017033,2]
[406718523,1772117444570,-200.0,0.00017033,2]
[406718524,1772117444580,-200.0,0.00017033,2]
[406718525,1772117444590,-200.0,0.00017033,2]
[406718526,1772117444599,-200.0,0.00017033,2]
[406718527,1772117444608,-200.0,0.00017033,2]
[406718528,1772117444743,-200.0,0.00017033,2]
[406718529,1772117444753,-200.0,0.00017033,2]
[406718530,1772117444766,-200.0,0.00017033,2]
[406718531,1772117444775,-200.0,0.00017033,2]
[406718532,1772117444784,-200.0,0.00017033,2]
[406718533,1772117444794,-200.0,0.00017033,2]
[406718534,1772117444803,-200.0,0.00017033,2]
[406718535,1772117444812,-200.0,0.00017033,2]
[406718536,1772117444822,-200.0,0.00017033,2]
[406718537,1772117444831,-200.0,0.00017033,2]
[406718538,1772117444840,-200.0,0.00017033,2]
[406718539,1772117444849,-200.0,0.00017033,2]
[406718540,1772117444859,-200.0,0.00017033,2]
[406718541,1772117444871,-200.0,0.00017033,2]
[406718542,1772117444880,-200.0,0.00017033,2]
[406718543,1772117444889,-200.0,0.00017033,2]
[406718544,1772117444899,-200.0,0.00017033,2]
[406718545,1772117444908,-200.0,0.00017033,2]
[406718546,1772117444917,-200.0,0.00017033,2]
[406718547,1772117444927,-200.0,0.00017033,2]
[406718548,1772117444938,-200.0,0.00017033,2]
[406718549,1772117444947,-200.0,0.00017033,2]
[406718550,1772117444956,-200.0,0.00017033,2]
[406718551,1772117444966,-200.0,0.00017033,2]
[406718552,1772117444975,-200.0,0.00017033,2]
[406718553,1772117444984,-240.0,0.00017033,2]
[406718554,1772117444993,-800.0,0.00017033,2]
[406718555,1772117445003,-800.0,0.00017033,2]
[406718556,1772117445015,-800.0,0.00017033,2]
[406718557,1772117445024,-800.0,0.00017033,2]
[406718558,1772117445033,-800.0,0.00017033,2]
[406718559,1772117445042,-800.0,0.00017033,2]
[406718560,1772117445052,-800.0,0.00017033,2]
[406718561,1772117445061,-800.0,0.00017033,2]
[406718562,1772117445071,-800.0,0.00017033,2]
[406718563,1772117445080,-800.0,0.00017033,2]
[406718564,1772117445089,-800.0,0.00017033,2]
[406718565,1772117445099,-800.0,0.00017033,2]
[406718566,1772117445108,-800.0,0.00017033,2]
[406718567,1772117445117,-800.0,0.00017033,2]
[406718568,1772117445127,-800.0,0.00017033,2]
[406718569,1772117445136,-800.0,0.00017033,2]
[406718570,1772117445146,-800.0,0.00017033,2]
[406718571,1772117445156,-800.0,0.00017033,2]
[406718572,1772117445165,-800.0,0.00017033,2]
[406718573,1772117445174,-800.0,0.00017033,2]
[406718574,1772117445183,-800.0,0.00017033,2]
[406718575,1772117445193,-800.0,0.00017033,2]
[406718576,1772117445203,-800.0,0.00017033,2]
[406718577,1772117445212,-800.0,0.00017033,2]
[406718578,1772117445222,-800.0,0.00017033,2]
[406718580,1772117445232,-800.0,0.00017033,2]
[406718582,1772117445242,-800.0,0.00017033,2]
[406718585,1772117445251,-800.0,0.00017033,2]
[406718588,1772117445263,-800.0,0.00017033,2]
[406718590,1772117445272,-800.0,0.00017033,2]
[406718592,1772117445282,-800.0,0.00017033,2]
[406718594,1772117445291,-800.0,0.00017033,2]
[406718597,1772117445302,-800.0,0.00017033,2]
[406718600,1772117445311,-800.0,0.00017033,2]
[406718601,1772117445321,-800.0,0.00017033,2]
[406718603,1772117445330,-800.0,0.00017033,2]
[406718605,1772117445339,-800.0,0.00017033,2]
[406718608,1772117445348,-800.0,0.00017033,2]
[406718609,1772117445358,-800.0,0.00017033,2]
[406718610,1772117445367,-800.0,0.00017033,2]
[406718611,1772117445377,-800.0,0.00017033,2]
[406718612,1772117445386,-800.0,0.00017033,2]
[406718613,1772117445396,-433.0,0.00017033,2]
[406718614,1772117445405,-1000.0,0.00017058,2]
[406718615,1772117445414,-18386.068904,0.000171,2]
[406718616,1772117445424,-5436.70489032,0.000171,2]
[406718617,1772117445434,-324.34,0.00017176,2]
[406718618,1772117445444,-500.0,0.00017199,2]
[406718619,1772117445454,-1252.0,0.000172,2]
[406718620,1772117445463,-1832.0,0.000172,2]
[406718622,1772117445473,-606.4,0.0001726,2]
[406718623,1772117445483,-1000.0,0.0001726,2]
[406718624,1772117445492,-500.0,0.00017272,2]
[406718625,1772117445501,-500.0,0.00017272,17]
[406718626,1772117445513,-527.0,0.00017279,2]
[406718627,1772117445522,-5900.0,0.000173,6]
[406718628,1772117445531,-202.67,0.0001735,14]
[406718629,1772117445541,-202.67,0.0001735,14]
[406718630,1772117445551,-1212.0,0.0001736,2]
[406718631,1772117445560,-350.0,0.00017378,2]
[406718632,1772117445570,-1100.0,0.000174,6]
[406718633,1772117445579,-239.0611416,0.00017416,2]
[406718634,1772117445588,-527.0,0.00017444,2]
[406718636,1772117445598,-628.0,0.00017459,2]
[406718637,1772117445607,-150.0,0.00017459,2]
[406718638,1772117445617,-178.0,0.00017459,2]
[406718639,1772117445626,-723.0,0.0001746,2]
[406718640,1772117445636,-150.0,0.0001746,2]
[406718641,1772117445647,-273.0,0.0001746,2]
[406718643,1772117445657,-527.0,0.00017486,2]
[406718644,1772117445666,-527.0,0.00017495,2]
[406718645,1772117445675,-1100.0,0.000175,6]
[406718646,1772117445685,-1000.0,0.00017519,2]
[406718647,1772117445694,-606.4,0.00017534,2]
[406718648,1772117445704,-1000.0,0.00017534,2]
[406718649,1772117445713,-527.0,0.00017553,2]
[406718650,1772117445723,-692.0,0.00017562,2]
[406718651,1772117445732,-150.0,0.00017562,2]
[406718652,1772117445742,-150.0,0.00017562,2]
[406718653,1772117445752,-150.0,0.00017562,2]
[406718654,1772117445764,-150.0,0.00017562,2]
[406718655,1772117445774,-233.0,0.00017562,2]
[406718656,1772117445783,-1100.0,0.000176,6]
[406718657,1772117445793,-350.0,0.00017614,4]
[406718658,1772117445803,-1833.85447521,0.0001764,2]
[406718659,1772117445812,-350.0,0.00017647,4]
[406718660,1772117445822,-527.0,0.00017676,2]
[406718661,1772117445831,-2844.0,0.0001768,2]
[406718662,1772117445840,-160.0,0.0001768,2]
[406718663,1772117445850,-190.0,0.0001768,2]
[406718664,1772117445865,-1100.0,0.000177,6]
[406718665,1772117445875,-527.0,0.00017722,2]
[406718666,1772117445885,-350.0,0.00017726,5]
[406718667,1772117445896,-500.0,0.00017726,7]
[406718668,1772117445905,-500.0,0.00017726,7]
[406718669,1772117445915,-500.0,0.00017726,7]
[406718670,1772117445924,-693.94657191,0.0001773,2]
[406718671,1772117445935,-1755.0,0.000178,6]
[406718672,1772117445945,-606.4,0.00017808,2]
[406718673,1772117445955,-500.0,0.00017808,2]
[406718674,1772117445964,-1000.0,0.00017808,2]
[406718675,1772117445974,-800.0,0.00017808,2]
[406718676,1772117445984,-158.27050591,0.0001782,2]
[406718677,1772117445993,-713.74871488,0.0001782,2]
[406718678,1772117446003,-137550.62068451,0.0001783,2]
[406718679,1772117446016,-1034.1174351,0.00017845,2]
[406718680,1772117446026,-500.0,0.00017863,2]
[406718681,1772117446036,-324.34,0.00017863,2]
[406718682,1772117446045,-527.0,0.00017873,2]
[406718683,1772117446055,-527.0,0.00017877,2]
[406718684,1772117446064,-150.0,0.0001789,2]
[406718685,1772117446073,-400.0,0.000179,2]
[406718686,1772117446083,-245.17260832,0.000179,2]
[406718687,1772117446092,-11259.76176711,0.000179,2]
[406718688,1772117446101,-1396.27549487,0.000179,2]